Cogmind - Beta 10.1 @@@ ROGUE MODE // 2021.05.15 @ 18:10:31 // Winter2019/RPGLIKE Player: Farfid Result: Destroyed by G-47 Trooper with Particle Gun Performance ------------- Evolutions (2) 1000 Regions Visited (7) 1400 Robots Destroyed (30) 150 Value Destroyed (650) 650 Prototype IDs (27) 540 Alien Tech Used (0) 0 Bonus (300) 300 TOTAL SCORE: 4040 Bonus ------- Aligned with FarCom 300 Cogmind --------- Core Integrity 0/800 Matter 290/300 Energy 280/280 System Corruption 0% Temperature Cool (9) Movement Flying (29) Location -8/Storage Parts ------- > --- POWER (1) -------- Cooled Ion Engine > --- PROPULSION (3) --- Improved Flight Unit Improved Flight Unit Improved Flight Unit > --- UTILITY (4) ------ Advanced Visual Processing Unit Transmission Jammer ECM Suite Trap Reconfigurator > --- WEAPON (1) ------- Heavy Flail > --- INVENTORY (3) ---- Drone Bay (2/2) Grenade Launcher Peak State ------------ > --- POWER ------------ Micro Nuclear Core > --- PROPULSION ------- Improved Flight Unit Improved Flight Unit Improved Flight Unit > --- UTILITY ---------- Visual Processing Unit Transmission Jammer ECM Suite Trap Reconfigurator > --- WEAPON ----------- Heavy Flail > --- INVENTORY -------- Reinforced Deuterium Engine Drone Bay Grenade Launcher [Rating: 32] Favorites ----------- Power Ion Engine Engine Ion Engine Power Core Micro Nuclear Core Propulsion Flight Unit Wheel Wheel Flight Unit Flight Unit Utility Visual Processing Unit Device ECM Suite Processor Visual Processing Unit Weapon Heavy Flail Ballistic Gun Makeshift Shrapnel Gun Launcher Grenade Launcher Impact Weapon Heavy Flail Build | -11 -10 -9 -9 -9 -8 -8 -8 ------- Run | Scr Mat Mat Min Exi Min Mat Sto Slots Evolved 5 | 2 . 2 . . . 1 . Power . | . . . . . . . . Propulsion 2 | 1 . 1 . . . . . Utility 3 | 1 . 1 . . . 1 . Weapon . | . . . . . . . . Parts Attached 28 | 4 4 2 6 1 . 4 7 Power 3 | 1 . . . . . 1 1 Engine 2 | 1 . . . . . . 1 Core 1 | . . . . . . 1 . Reactor . | . . . . . . . . Propulsion 12 | 2 2 . 4 . . 1 3 Treads . | . . . . . . . . Leg . | . . . . . . . . Wheel 2 | 2 . . . . . . . Hover . | . . . . . . . . Flight 10 | . 2 . 4 . . 1 3 Utility 7 | . 2 1 1 1 . 1 1 Device 4 | . 1 . 1 1 . 1 . Storage . | . . . . . . . . Processor 3 | . 1 1 . . . . 1 Hackware . | . . . . . . . . Protection . | . . . . . . . . Artifact . | . . . . . . . . Weapon 6 | 1 . 1 1 . . 1 2 Energy Gun . | . . . . . . . . Energy Cannon . | . . . . . . . . Ballistic Gun 3 | 1 . 1 1 . . . . Ballistic Cannon . | . . . . . . . . Launcher 1 | . . . . . . . 1 Special Weapon . | . . . . . . . . Impact Weapon 2 | . . . . . . 1 1 Slashing Weapon . | . . . . . . . . Piercing Weapon . | . . . . . . . . Special Melee Weapon . | . . . . . . . . Unidentified Prototypes 2 | . . . . . . . 2 Parts Lost . | . . . . . . . . Power . | . . . . . . . . Propulsion . | . . . . . . . . Utility . | . . . . . . . . Weapon . | . . . . . . . . Highest Loss Streak . | . . . . . . . . Average Slot Usage (%) 93 | . 78 71 94 100 100 100 100 Engine 10 | . 16 12 12 12 12 2 8 Core 1 | . . . . . . 8 2 Wheel 2 | . 17 . . . . . . Flight 31 | . 15 25 34 37 37 33 33 Device 20 | . 5 1 8 19 25 32 33 Processor 14 | . 6 20 25 17 12 11 11 Ballistic Gun 7 | . 16 12 12 12 12 9 . Impact Weapon 4 | . . . . . . 1 10 Naked Turns . | . . . . . . . . Heaviest Build 14 | 7 8 8 9 9 9 12 14 Greatest Support 26 | 26 26 8 18 18 18 20 23 Greatest Overweight (x) . | . . . . . . . . Average Overweight (x) . | . . . . . . . . Largest Inventory Capacity 3 | 2 2 2 2 2 2 3 3 Average Capacity 2 | 2 2 2 2 2 2 2 3 Most Carried 3 | . . 1 2 2 2 3 3 Average Carried 1 | . . . 1 1 2 2 2 Final Capacity 3 | 2 2 2 2 2 2 3 3 Final Carried 2 | . . 1 2 2 2 2 2 Class Distribution -------------------- 57% | Mutant 36% | Infiltrator-Sprinter 5% | Infiltrator-Mutant Dominant Class ---------------- Mutant | -10/Materials Mutant | -9/Materials Mutant | -9/Mines Mutant | -9/Exiles Mutant | -8/Mines Infiltrator-Mutant | -8/Materials Infiltrator-Sprinter | -8/Storage Resources | -11 -10 -9 -9 -9 -8 -8 -8 ----------- Run | Scr Mat Mat Min Exi Min Mat Sto Matter Collected 698 | 240 91 . 170 . . . 197 Remotely . | . . . . . . . . Salvage Created 1027 | . 73 . 109 . . . 845 Parts 40 | . 9 . 9 . . 4 18 Haulers Intercepted 1 | . . . . . . . 1 Recyclers Shooed 4 | . 1 . . . . . 3 Parts Field Recycled . | . . . . . . . . Retrieved Matter . | . . . . . . . . Parts Self-Destructed . | . . . . . . . . Prevented . | . . . . . . . . Kills | -11 -10 -9 -9 -9 -8 -8 -8 ------- Run | Scr Mat Mat Min Exi Min Mat Sto Combat Hostiles Destroyed 20 | . 3 . 7 . . 1 9 Melee 1 | . . . . . . . 1 Guns 11 | . 3 . 7 . . 1 . AOE 2 | . . . . . . . 2 Classes Destroyed 8 | . 2 . . . . 1 5 Worker 1 | . . . . . . . 1 Builder 2 | . . . . . . . 2 Hauler 1 | . . . . . . . 1 Recycler 5 | . . . . . . . 5 Watcher 1 | . 1 . . . . . . Swarmer 10 | . 3 . 7 . . . . Grunt 9 | . . . . . . . 9 Sentry 1 | . . . . . . 1 . Best Kill Streak 9 | . 3 . 4 . . 1 9 Combat Bots Only 4 | . 3 . 4 . . 1 3 Max Kills in Single Turn 3 | . 1 . 1 . . 1 3 Gunslinging . | . . . . . . . . Exploded 1 | . . . . . . . 1 Melee 1 | . . . . . . . 1 Uniques/NPCs Destroyed . | . . . . . . . . Combat | -11 -10 -9 -9 -9 -8 -8 -8 -------- Run | Scr Mat Mat Min Exi Min Mat Sto Damage Taken 1545 | . 140 71 216 . 32 94 992 Core 1323 | . 119 65 177 . 32 76 854 Absorbed by Shields 105 | . . . . . . . 105 Redirected to Core 709 | . 62 20 108 . . 59 460 Core Remaining (%) 84 | 100 90 . . . 62 . . Volleys Fired 51 | . 17 . 23 . . 5 6 Largest 1 | . 1 . 1 . . 1 1 Hottest 30 | . 20 . 25 . . 24 30 Shots Fired 51 | . 17 . 23 . . 5 6 Gun 45 | . 17 . 23 . . 5 . Cannon . | . . . . . . . . Launcher 6 | . . . . . . . 6 Special . | . . . . . . . . Kinetic 45 | . 17 . 23 . . 5 . Thermal . | . . . . . . . . Explosive 6 | . . . . . . . 6 Electromagnetic . | . . . . . . . . Robot Hit Streak 7 | . 3 . 7 . . 5 5 Robot Miss Streak 4 | . 4 . 1 . . 2 1 Penetration Max . | . . . . . . . . Secondary Targets . | . . . . . . . . Shots Hit Robots 74 | . 7 . 19 . . 5 43 Core Hits 35 | . 6 . 7 . . 2 20 Critical Hits 1 | . . . 1 . . . . Critical Kills . | . . . . . . . . Critical Parts Destroyed 1 | . . . 1 . . . . Melee Attacks 52 | . . . . . . . 52 Impact 52 | . . . . . . . 52 Slashing . | . . . . . . . . Piercing . | . . . . . . . . Sneak Attacks 6 | . . . . . . . 6 Combat Hostiles 1 | . . . . . . . 1 Follow-up Attacks . | . . . . . . . . Damage Inflicted 2351 | . 121 . 321 . . 53 1856 Guns 495 | . 121 . 321 . . 53 . Cannons . | . . . . . . . . Explosions 531 | . . . . . . . 531 Melee 1325 | . . . . . . . 1325 Ramming . | . . . . . . . . Kinetic 495 | . 121 . 321 . . 53 . Thermal . | . . . . . . . . Explosive 531 | . . . . . . . 531 Electromagnetic . | . . . . . . . . Impact 1325 | . . . . . . . 1325 Slashing . | . . . . . . . . Piercing . | . . . . . . . . Highest Corruption . | . . . . . . . . Average Corruption . | . . . . . . . . Corruption Purged . | . . . . . . . . Overload Shots . | . . . . . . . . Overflow Damage 97 | . . . . . . . 97 Projectiles . | . . . . . . . . Explosions . | . . . . . . . . Melee 97 | . . . . . . . 97 Knockbacks 3 | . . . . . . . 3 Impact 3 | . . . . . . . 3 Kinetic . | . . . . . . . . Secondary . | . . . . . . . . Self-Inflicted Damage . | . . . . . . . . Shots . | . . . . . . . . Rammed . | . . . . . . . . Targets Rammed . | . . . . . . . . Kicked . | . . . . . . . . Crushed . | . . . . . . . . Highest Temperature 8 | . . . 5 . . 3 8 Average Temperature 1 | . . . 1 . . 3 8 Received Heat Transfer 615 | . . 18 . . . 36 561 Siege Activations . | . . . . . . . . Robots Corrupted . | . . . . . . . . Combat Hostiles . | . . . . . . . . Parts Fried 9 | . . . 1 . . . 8 Impact Corruptions 11 | . . . . . . . 11 Robots Melted . | . . . . . . . . Combat Hostiles . | . . . . . . . . Parts Melted . | . . . . . . . . Heat Transferred . | . . . . . . . . Parts Sabotaged . | . . . . . . . . Parts Stolen . | . . . . . . . . Parts Stripped . | . . . . . . . . Power Chain Reactions . | . . . . . . . . Missiles Intercepted . | . . . . . . . . Alert | -11 -10 -9 -9 -9 -8 -8 -8 ------- Run | Scr Mat Mat Min Exi Min Mat Sto Peak Influence 416 | . 132 115 194 . 15 46 416 Initial 55 | . . 55 44 . . . 18 Average 126 | . 69 90 150 . 14 14 177 Maximum Alert Level 2 | . . . . . . . 2 Low Security (%) 83 | 100 100 100 100 . 100 100 61 Level 1 14 | . . . . . . . 34 Level 2 1 | . . . . . . . 3 Level 3 . | . . . . . . . . Level 4 . | . . . . . . . . Level 5 . | . . . . . . . . High Security . | . . . . . . . . Max Security . | . . . . . . . . Squads Dispatched 3 | . . . . . . . 3 Investigation . | . . . . . . . . Extermination . | . . . . . . . . Reinforcement 3 | . . . . . . . 3 Assault . | . . . . . . . . Garrison . | . . . . . . . . Intercept . | . . . . . . . . Construction Impeded 1 | . . . . . . . 1 Haulers Reinforced . | . . . . . . . . Stealth | -11 -10 -9 -9 -9 -8 -8 -8 --------- Run | Scr Mat Mat Min Exi Min Mat Sto Distress Signals 2 | . . 1 . . . . 1 Communications Jammed . | . . . . . . . . Distress Signals . | . . . . . . . . Times Spotted 48 | . 5 6 12 . 1 1 23 Peak Tracking Total 7 | . 3 7 4 . 1 1 6 Tactical Retreats 8 | . . 1 2 . . . 5 Traps | -11 -10 -9 -9 -9 -8 -8 -8 ------- Run | Scr Mat Mat Min Exi Min Mat Sto Traps Triggered 2 | . . . . . . . 2 Indirectly . | . . . . . . . . Trap Hack Attempts . | . . . . . . . . Triggered . | . . . . . . . . Disarmed . | . . . . . . . . Reprogrammed . | . . . . . . . . Reused 4 | . . . 3 . . . 1 Traps Reconfigurated 1 | . . . . . . . 1 Traps Extracted . | . . . . . . . . Installed 4 | . . . 3 1 . . . Triggered 4 | . . . 3 . . . 1 Exploded 2 | . . . . 1 . . 1 Machines | -11 -10 -9 -9 -9 -8 -8 -8 ---------- Run | Scr Mat Mat Min Exi Min Mat Sto Machines Disabled 2 | . . . . . . . 2 Max in Single Turn 1 | . . . . . . . 1 Machines Sabotaged . | . . . . . . . . Garrisons Compromised . | . . . . . . . . Overloaded Fab Kills . | . . . . . . . . Fab Network Shutdowns . | . . . . . . . . Hacking | -11 -10 -9 -9 -9 -8 -8 -8 --------- Run | Scr Mat Mat Min Exi Min Mat Sto Machines Accessed 11 | . 2 2 . 2 1 . 4 Terminals 9 | . 2 2 . . 1 . 4 Fabricators . | . . . . . . . . Repair Stations . | . . . . . . . . Recycling Units . | . . . . . . . . Scanalyzers . | . . . . . . . . Garrison Access . | . . . . . . . . Total Hacks 18 | . 4 6 . 2 2 . 4 Successful 12 | . 2 2 . 2 2 . 4 Failed 6 | . 2 4 . . . . . Catastrophic . | . . . . . . . . Database Lockouts . | . . . . . . . . Manual 6 | . 1 3 . 1 1 . . Terminals 16 | . 4 6 . . 2 . 4 Fabricators . | . . . . . . . . Repair Stations . | . . . . . . . . Recycling Units . | . . . . . . . . Scanalyzers . | . . . . . . . . Garrison Access . | . . . . . . . . Terminal Hacks 12 | . 2 2 . 2 2 . 4 Record 1 | . . . . 1 . . . Prototype ID Bank 1 | . . . . . . . 1 Open Door 3 | . . . . . . . 3 Unreport Threat 1 | . . . . . 1 . . Dispatch Records 1 | . . . . . 1 . . Hauler Manifests 1 | . 1 . . . . . . Zone Layout 3 | . 1 2 . . . . . EX-Prototype ID Bank 1 | . . . . 1 . . . Fabricator Hacks . | . . . . . . . . Repair Station Hacks . | . . . . . . . . Recycling Unit Hacks . | . . . . . . . . Scanalyzer . | . . . . . . . . Garrison Access Hacks . | . . . . . . . . Unauthorized Hacks . | . . . . . . . . Terminals . | . . . . . . . . Fabricators . | . . . . . . . . Repair Stations . | . . . . . . . . Recycling Units . | . . . . . . . . Scanalyzers . | . . . . . . . . Garrison Access . | . . . . . . . . Data Cores Recovered . | . . . . . . . . Used . | . . . . . . . . Hacking Detections 6 | . 2 2 . . 1 . 1 Full Trace Events 1 | . . 1 . . . . . Feedback Events . | . . . . . . . . Feedback Blocked . | . . . . . . . . Robot Schematics Acquired . | . . . . . . . . Robots Built . | . . . . . . . . Matter . | . . . . . . . . Time . | . . . . . . . . Total Robot Build Rating . | . . . . . . . . Part Schematics Acquired . | . . . . . . . . Parts Built . | . . . . . . . . Matter . | . . . . . . . . Time . | . . . . . . . . Total Part Build Rating . | . . . . . . . . Parts Repaired . | . . . . . . . . Time . | . . . . . . . . Parts Recycled . | . . . . . . . . Recycled Matter . | . . . . . . . . Retrieved Matter . | . . . . . . . . Retrieved Components . | . . . . . . . . Parts Scanalyzed . | . . . . . . . . Part Schematics Acquired . | . . . . . . . . Parts Damaged . | . . . . . . . . Bothacking | -11 -10 -9 -9 -9 -8 -8 -8 ------------ Run | Scr Mat Mat Min Exi Min Mat Sto Used RIF Installer . | . . . . . . . . Robots Hacked . | . . . . . . . . Non-combat . | . . . . . . . . Combat . | . . . . . . . . Robot Hacks Applied . | . . . . . . . . Relay Couplers Released . | . . . . . . . . Robots Rewired . | . . . . . . . . Allies Hacked . | . . . . . . . . Hacks Repelled . | . . . . . . . . Allies | -11 -10 -9 -9 -9 -8 -8 -8 -------- Run | Scr Mat Mat Min Exi Min Mat Sto Total Allies . | . . . . . . . . Largest Group . | . . . . . . . . Highest-Rated Group . | . . . . . . . . Highest-Rated Ally . | . . . . . . . . Total Orders . | . . . . . . . . Ally Attacks . | . . . . . . . . Total Damage . | . . . . . . . . Kills . | . . . . . . . . Allies Corrupted . | . . . . . . . . Allies Melted . | . . . . . . . . Intel | -11 -10 -9 -9 -9 -8 -8 -8 ------- Run | Scr Mat Mat Min Exi Min Mat Sto Robot Analysis Total . | . . . . . . . . Derelict Logs Recovered 2 | . . . 2 . . . . Drone Launches . | . . . . . . . . Drone Recoveries . | . . . . . . . . Exploration | -11 -10 -9 -9 -9 -8 -8 -8 ------------- Run | Scr Mat Mat Min Exi Min Mat Sto Turns Passed 1151 | 38 145 80 212 163 15 80 418 Spaces Moved 1588 | 37 193 170 418 280 45 129 316 Core 2 | 2 . . . . . . . Treads . | . . . . . . . . Legs . | . . . . . . . . Wheels 89 | 35 54 . . . . . . Hover . | . . . . . . . . Flight 1497 | . 139 170 418 280 45 129 316 Fastest Speed 29 | 50 37 37 34 34 34 34 29 Average Speed 36 | 88 51 37 34 34 34 34 29 Slowest Speed 100 | 100 90 37 37 34 34 34 34 Overloaded Moves . | . . . . . . . . Propulsion Burnouts . | . . . . . . . . Robots Hopped 16 | . 1 4 6 . 2 . 3 Cave-ins Triggered . | . . . . . . . . Exploration Rate (%) 40 | 4 55 21 92 70 12 16 51 Regions Visited 7 Branch Regions 4 Pre-discovered Areas 2 | . . . 1 1 . . . Known Exits Taken 1 | . . . . . . 1 . Unknown Exits Taken 6 | 1 1 1 1 1 1 . . Scrap Searched 2 | . . . 2 . . . . Spaces Dug 2 | . . . . . . . 2 Terrain Destroyed 30 | . . . . . . . 30 Melee 2 | . . . . . . . 2 Projectile . | . . . . . . . . AOE 28 | . . . . . . . 28 Terrain Rammed . | . . . . . . . . Walls Destroyed . | . . . . . . . . Machines Disabled . | . . . . . . . . Actions | -11 -10 -9 -9 -9 -8 -8 -8 --------- Run | Scr Mat Mat Min Exi Min Mat Sto Total 1979 | 40 218 182 465 347 42 158 527 Wait 218 | . 1 13 6 63 . 13 122 Move 1549 | 36 190 161 405 279 40 128 310 Hop 16 | . 1 4 6 . 2 . 3 Pick Up 7 | . . . 5 1 . . 1 Fast Attach 17 | 4 4 1 2 1 . 3 2 Attach 1 | . . . 1 . . . . Detach 1 | . . 1 . . . . . Swap 10 | . . 1 3 . . 1 5 Drop 20 | . 2 1 7 2 . 3 5 Fire 51 | . 17 . 23 . . 5 6 Melee 52 | . . . . . . . 52 Ram . | . . . . . . . . Kick . | . . . . . . . . Crush . | . . . . . . . . Escape Stasis 8 | . . . . . . . 8 Rewire . | . . . . . . . . Trap 4 | . . . 3 1 . . . Miscellaneous 25 | . 3 . 4 . . 5 13 Route ------- -11/Scrapyard -10/Materials (discovered 2 exits: *Mat / [*Min]) -9/Materials -9/Mines (discovered 3 exits: [*Mat x2] / *Exi) -9/Exiles (discovered 2 exits: *Min x2) -8/Mines -8/Materials (discovered 3 exits: Fac / *Sto x2) -8/Storage History --------- Turn | Location | Event 1 | -11/Scrapyard | Upgraded with Propulsion slot (x1) 1 | -11/Scrapyard | Upgraded with Utility slot (x1) 15 | -11/Scrapyard | Discovered new exit (range 16) 39 | -11/Scrapyard | Entered Materials 121 | -10/Materials | Discovered new exit (range 16) 170 | -10/Materials | Discovered new exit (range 18) 184 | -10/Materials | Entered another Materials area 186 | -9/Materials | Reached level 2 187 | -9/Materials | Upgraded with Propulsion slot (x1) 187 | -9/Materials | Upgraded with Utility slot (x1) 253 | -9/Materials | Discovered new exit (range 14) 264 | -9/Materials | Entered Mines 311 | -9/Mines | Learned location of Storage (-8) 321 | -9/Mines | Build established: Mutant 324 | -9/Mines | Found a hidden stash of uninstalled traps 374 | -9/Mines | Reached level 3 378 | -9/Mines | Discovered new exit (range 8) 394 | -9/Mines | A weapon hastily lodged in a ceiling crevice suddenly fell to the ground 429 | -9/Mines | Learned 4 Materials zone layouts 433 | -9/Mines | Learned Materials terminal intel 441 | -9/Mines | YI-UF0 nonchalantly dropped a Grenade Launcher on the ground 441 | -9/Mines | Discovered new exit (range 6) 475 | -9/Mines | Deemed a non-threat by the Exiles lab entrance 475 | -9/Mines | Discovered new exit (range 5) 476 | -9/Mines | Entered Exiles 481 | -9/Exiles | Discovered new exit (range 17) 495 | -9/Exiles | Met 8R-AWN 500 | -9/Exiles | Met EX-HEX 512 | -9/Exiles | Met EX-DEC 519 | -9/Exiles | Learned location of Zion (-6) 524 | -9/Exiles | Met EX-BIN 530 | -9/Exiles | Aligned with FarCom system 531 | -9/Exiles | Given EX-Vault access code 539 | -9/Exiles | Opened EX-Vault 541 | -9/Exiles | Found Trap Reconfigurator 549 | -9/Exiles | Warned to stay clear of 0b10 Research branches 556 | -9/Exiles | Exiles lab attacked by MAIN.C 606 | -9/Exiles | Discovered new exit (range 14) 639 | -9/Exiles | Left Exiles lab with Trap Reconfigurator 639 | -9/Exiles | Entered Mines 651 | -8/Mines | Discovered new exit (range 8) 654 | -8/Mines | Entered Materials 654 | -8/Materials | Discovered new exit (range 8) 655 | -8/Materials | Identified exit to Factory 655 | -8/Materials | Identified exit to Storage 656 | -8/Materials | Loaded intel: 12 terminal locations 656 | -8/Materials | Reached level 4 660 | -8/Materials | Upgraded with Utility slot (x1) 685 | -8/Materials | Discovered exit to Storage (range 17) 734 | -8/Materials | Entered Storage 736 | -8/Storage | Reached level 5 907 | -8/Storage | Core integrity fell below 50% 1017 | -8/Storage | Reached level 6 1044 | -8/Storage | Build established: Infiltrator-Sprinter 1144 | -8/Storage | Core integrity fell below 20% 1152 | -8/Storage | Destroyed by G-47 Trooper with Particle Gun Last Messages --------------- 01075_ K-01 Serf collects debris. 01076_ Discarded Visual Processing Unit. 01106_ Triggered Stasis Trap. 01106_ A bubble of rippling energy engulfs the area. 01106_ Field strength at 91. 01106_ Field strength at 82. 01107_ Field strength at 73. 01108_ Field strength at 54. 01109_ Field strength at 45. 01110_ Field strength at 36. 01111_ Field strength at 27. 01112_ Field strength at 9. 01113_ Stasis field depleted. 01118_ Dropped Rigged Rnf. Deuterium Engine. 01123_ Rigged Rnf. Deuterium Engine explodes. 01130_ Triggered Stasis Trap. 01130_ A bubble of rippling energy engulfs the area. 01130_ Field strength at 91. 01133_ Field strength at 78. 01146_ Stasis field depleted. Map ----- +----------------------------------------------------+ | ????????????????????????????????????????# ## * | | ????????????????????????????????????????# + | | ????????????????????????????????????????# ##T# * | | ????????????????????????????????????????# #### ** | | ????????????????????????????????????????# #??#### | | ???????????????????????????????????????## ##???## | | ???????????????????????????????????????# ##### | | ???????????????????? ?????????????????# | | ???????????????????# ????????????????# T ^ | | ???????????????????# ????????????????# ##### | | ???????????????????# ?????????????############## | | ???????????????????# ?????????????# # | | ???????????????????# ?????????????# + | | ???????????????????? w ?????????????# # | | ???????????????????? ???"""???????# # | | ????????????????????# ??? ????????# + | | ????????????????????# ??? ????????#######"###### | | ??????????????????### ###+#????????# ###### | | ??????????????????? ########?# # | | ???????????????????? + #?# #!!= | | ????????????????????# # #?# # !!"" | | ????????????????????# # #?# #!%""/ | | ????????????????????# + #?#+##+#### " "! | | ????????????????????# g g## #?# +*"]!" | | ????????????????????# #?? ??# #?"!]" | | ?????????????####+###^^^ @###""""#### #?"""" | | ???? g +???? | | ??????# #################"""""###########???## | | ???????????????????????????????####??????????????? | | ?????????????????????????????????????????????????? | | ?????????????????????????????????????????????????? | | ?????????????????????????????????????????????????? | | | | | | | | | | | | | | | | | | | | | | | | | | | | | | | | | | | | | +----------------------------------------------------+ Best States ------------- Heat Dissipation 31 Energy Generation 20 Energy Capacity 280 Matter Stores 300 Matter Capacity 300 Sight Range 20 Terrain Scan Density 10 ECM Strength 1 Jamming Range 8 Resistance: KI 5 Resistance: TH 5 Evasion (%) 64 Targeting Accuracy 6 Item Schematics ----------------- None Robot Schematics ------------------ None Fabricated ------------ Nothing Alien Tech Used ----------------- None Achievements -------------- None Challenges ------------ None RPGLIKE | -11 -10 -9 -9 -9 -8 -8 -8 --------- Run | Scr Mat Mat Min Exi Min Mat Sto Levels Raised 5 | . . 1 1 . . 1 2 XP Earned 10905 | 3000 385 1500 1250 350 500 1650 2270 XP Spent 6610 | 2660 . 1600 145 . . 2205 . Upgrades 19 | 11 . 2 2 . . 4 . Propulsion Slot 2 | 1 . 1 . . . . . Utility Slot 3 | 1 . 1 . . . 1 . Core Integrity 4 | 2 . . 1 . . 1 . Heat Dissipation 1 | 1 . . . . . . . Energy Generation 1 | 1 . . . . . . . Mass Support 1 | . . . 1 . . . . Inventory Capacity 3 | 2 . . . . . 1 . Melee Accuracy 2 | 1 . . . . . 1 . KI Resistance % 1 | 1 . . . . . . . TH Resistance % 1 | 1 . . . . . . . Protomatter Created 174 | . 18 . 19 . . 40 97 Integrity Restored 522 | . 54 . 57 . . 120 291 Core 522 | . 54 . 57 . . 120 291 Protomatter Decayed 8 | . . . . 8 . . . Game ------ Seed GravityArchitectPlating Manual? 0 Play Time 00:27:40 Cumulative 251.3 hours Start 2021.05.15 @ 17:45:00 End 2021.05.15 @ 18:10:31 Sessions 1 Manual Loads 0 Difficulty Rogue Special Mode Winter2019/RPGLIKE Game No. 103 Rogue 103 Adventurer 0 Explorer 0 Win Type - Total 8 Types 6/0/1/1/0/0/0/0/0 Lore% 70 Gallery% 82 Achievement% 65 Wizard Run 0 Options --------- ASCII 0 Keyboard 0 Movement Mouse Keybinds 0 Fullscreen 2 Font 12/Smallcaps Map View 83x54 Tactical HUD 1 Map Filters NONE Filters NONE Steam X RUN: 7216f9ae-9e16-46ac-92de-06835ad6c36e